[Event "*** Titled Tuesday Blitz"]
[Site "Chess.com"]
[Date "2019.07.02"]
[Round "5"]
[White "MarcoRiehle"]
[Black "larso"]
[Result "1-0"]
[WhiteElo "2716"]
[BlackElo "2786"]
[TimeControl "180+2"]
[EndTime "14:03:54 PDT"]
[Termination "MarcoRiehle won by resignation"]

1. e4 {[%clk 0:02:25.7]} 1... c5 {[%clk 0:02:45.1]} 2. Nf3 {[%clk 0:02:01]} 2...
d6 {[%clk 0:02:45.5]} 3. d4 {[%clk 0:02:02.5]} 3... cxd4 {[%clk 0:02:46.5]} 4.
Nxd4 {[%clk 0:02:04.4]} 4... Nf6 {[%clk 0:02:44.2]} 5. f3 {[%clk 0:02:04.9]}
5... g6 {[%clk 0:02:41]} 6. c4 {[%clk 0:02:06]} 6... Bg7 {[%clk 0:02:42.1]} 7.
Nc3 {[%clk 0:02:06.6]} 7... Nc6 {[%clk 0:02:43.2]} 8. Be3 {[%clk 0:02:08]} 8...
O-O {[%clk 0:02:42.5]} 9. Qd2 {[%clk 0:02:09.2]} 9... Nxd4 {[%clk 0:02:42.8]}
10. Bxd4 {[%clk 0:02:02.3]} 10... Bd7 {[%clk 0:02:43.3]} 11. Be2 {[%clk
0:01:56.1]} 11... Bc6 {[%clk 0:02:43.6]} 12. b4 {[%clk 0:01:54.7]} 12... a5
{[%clk 0:02:39.4]} 13. b5 {[%clk 0:01:55.4]} 13... Be8 {[%clk 0:02:39.4]} 14.
O-O {[%clk 0:01:55.8]} 14... Rc8 {[%clk 0:02:39.7]} 15. Rac1 {[%clk 0:01:53.8]}
15... Nd7 {[%clk 0:02:40.5]} 16. Nd5 {[%clk 0:01:50.4]} 16... Bxd4+ {[%clk
0:02:28.6]} 17. Qxd4 {[%clk 0:01:52.3]} 17... Nc5 {[%clk 0:02:29.8]} 18. e5
{[%clk 0:01:50.4]} 18... Ne6 {[%clk 0:01:15.1]} 19. Qe3 {[%clk 0:01:39.1]} 19...
dxe5 {[%clk 0:01:15.7]} 20. Qxe5 {[%clk 0:01:32.9]} 20... Qd6 {[%clk 0:01:12.9]}
21. Qxd6 {[%clk 0:01:32.9]} 21... exd6 {[%clk 0:01:13.6]} 22. Ne7+ {[%clk
0:01:33.9]} 1-0

[Event "*** Titled Tuesday Blitz"]
[Site "Chess.com"]
[Date "2019.07.02"]
[Round "5"]
[White "Korchmar_Vasiliy"]
[Black "dolynachess"]
[Result "1-0"]
[WhiteElo "2746"]
[BlackElo "2460"]
[TimeControl "180+2"]
[EndTime "14:04:04 PDT"]
[Termination "Korchmar_Vasiliy won by resignation"]

1. d4 {[%clk 0:03:01.9]} 1... Nf6 {[%clk 0:02:59.6]} 2. c4 {[%clk 0:03:03.1]}
2... c5 {[%clk 0:03:00.8]} 3. d5 {[%clk 0:03:04.1]} 3... b5 {[%clk 0:03:02.1]}
4. cxb5 {[%clk 0:03:05.9]} 4... a6 {[%clk 0:03:03.5]} 5. bxa6 {[%clk 0:03:07.3]}
5... Bxa6 {[%clk 0:03:05.4]} 6. Nc3 {[%clk 0:03:08.8]} 6... d6 {[%clk
0:03:06.6]} 7. e4 {[%clk 0:03:10]} 7... Bxf1 {[%clk 0:03:08.5]} 8. Kxf1 {[%clk
0:03:11.8]} 8... Nbd7 {[%clk 0:03:10]} 9. Nf3 {[%clk 0:03:13]} 9... g6 {[%clk
0:03:11.9]} 10. g3 {[%clk 0:03:14]} 10... Bg7 {[%clk 0:03:13.2]} 11. Kg2 {[%clk
0:03:15.4]} 11... O-O {[%clk 0:03:14.8]} 12. a4 {[%clk 0:03:15.9]} 12... Ra6
{[%clk 0:03:15.1]} 13. Qe2 {[%clk 0:03:13.2]} 13... Qa8 {[%clk 0:03:15.6]} 14.
Rd1 {[%clk 0:02:57.1]} 14... Rb8 {[%clk 0:03:13.6]} 15. Ra3 {[%clk 0:02:20.5]}
15... Ne8 {[%clk 0:03:01.5]} 16. Bg5 {[%clk 0:02:20.2]} 16... Kf8 {[%clk
0:03:02.1]} 17. Rb1 {[%clk 0:02:02.3]} 17... Nb6 {[%clk 0:02:44.5]} 18. Qc2
{[%clk 0:01:49.4]} 18... Nc7 {[%clk 0:02:24.6]} 19. b4 {[%clk 0:01:47.3]} 19...
Nc4 {[%clk 0:02:13.7]} 20. Rab3 {[%clk 0:01:48.4]} 20... h6 {[%clk 0:01:47.4]}
21. Bf4 {[%clk 0:01:48.9]} 21... cxb4 {[%clk 0:01:41.7]} 22. Rxb4 {[%clk
0:01:49.9]} 22... Rxb4 {[%clk 0:01:37.3]} 23. Rxb4 {[%clk 0:01:51.8]} 23... Nb6
{[%clk 0:01:26.6]} 24. Qb3 {[%clk 0:01:52.2]} 24... Nd7 {[%clk 0:01:22.5]} 25.
Nd4 {[%clk 0:01:47.4]} 25... g5 {[%clk 0:01:20.2]} 26. Be3 {[%clk 0:01:48.2]}
26... Nc5 {[%clk 0:01:14.9]} 27. Rb8+ {[%clk 0:01:48.8]} 1-0

[Event "*** Titled Tuesday Blitz"]
[Site "Chess.com"]
[Date "2019.07.02"]
[Round "5"]
[White "lionheart95"]
[Black "DerSchachaffe"]
[Result "0-1"]
[WhiteElo "2416"]
[BlackElo "2375"]
[TimeControl "180+2"]
[EndTime "14:04:26 PDT"]
[Termination "DerSchachaffe won by checkmate"]

1. d4 {[%clk 0:03:01.9]} 1... Nf6 {[%clk 0:03:00.5]} 2. c4 {[%clk 0:03:02.5]}
2... g6 {[%clk 0:03:01.8]} 3. Nf3 {[%clk 0:03:02.1]} 3... Bg7 {[%clk 0:03:02.9]}
4. g3 {[%clk 0:03:03.3]} 4... O-O {[%clk 0:03:03.3]} 5. Bg2 {[%clk 0:03:04.2]}
5... d5 {[%clk 0:03:04.8]} 6. O-O {[%clk 0:03:04]} 6... c6 {[%clk 0:03:02.9]} 7.
cxd5 {[%clk 0:03:02.6]} 7... cxd5 {[%clk 0:03:04.8]} 8. Ne5 {[%clk 0:03:03.9]}
8... Ng4 {[%clk 0:03:05.6]} 9. Nxg4 {[%clk 0:03:00.6]} 9... Bxg4 {[%clk
0:03:06]} 10. Nc3 {[%clk 0:03:01.9]} 10... Nc6 {[%clk 0:03:06.6]} 11. Be3 {[%clk
0:02:58.2]} 11... e5 {[%clk 0:03:01]} 12. dxe5 {[%clk 0:02:54.5]} 12... d4
{[%clk 0:02:52.5]} 13. Bxc6 {[%clk 0:02:55.5]} 13... dxe3 {[%clk 0:02:52.8]} 14.
Qxd8 {[%clk 0:02:54.2]} 14... Rfxd8 {[%clk 0:02:47.7]} 15. Bxb7 {[%clk
0:02:54.8]} 15... Rab8 {[%clk 0:02:48.1]} 16. Bd5 {[%clk 0:02:55.5]} 16... Bxe5
{[%clk 0:02:17]} 17. Bb3 {[%clk 0:02:55.7]} 17... exf2+ {[%clk 0:02:14.4]} 18.
Kxf2 {[%clk 0:02:55.9]} 18... Rd2 {[%clk 0:01:46.5]} 19. Ke3 {[%clk 0:02:42.6]}
19... Rxb2 {[%clk 0:01:44.7]} 20. Rac1 {[%clk 0:02:41.4]} 20... Bxc3 {[%clk
0:01:22.8]} 21. Rxc3 {[%clk 0:02:43.3]} 21... Rxe2+ {[%clk 0:01:23.5]} 22. Kf4
{[%clk 0:02:43.5]} 22... Bh3 {[%clk 0:00:59.3]} 23. Rff3 {[%clk 0:02:39.1]}
23... Rb4+ {[%clk 0:00:40.9]} 24. Kg5 {[%clk 0:02:26.2]} 24... Rb5+ {[%clk
0:00:12.5]} 25. Kf4 {[%clk 0:02:16.9]} 25... Rf5# {[%clk 0:00:12.4]} 0-1

[Event "*** Titled Tuesday Blitz"]
[Site "Chess.com"]
[Date "2019.07.02"]
[Round "5"]
[White "Kimster98"]
[Black "WPWPWP-2015"]
[Result "0-1"]
[WhiteElo "2573"]
[BlackElo "2398"]
[TimeControl "180+2"]
[EndTime "14:04:35 PDT"]
[Termination "WPWPWP-2015 won by resignation"]

1. Nf3 {[%clk 0:03:01.9]} 1... Nf6 {[%clk 0:02:56]} 2. b3 {[%clk 0:03:02]} 2...
d5 {[%clk 0:02:55.7]} 3. Bb2 {[%clk 0:03:03.9]} 3... c5 {[%clk 0:02:55.9]} 4. e3
{[%clk 0:03:04.2]} 4... Nc6 {[%clk 0:02:57.1]} 5. Bb5 {[%clk 0:03:05.4]} 5...
Bg4 {[%clk 0:02:57.7]} 6. h3 {[%clk 0:03:05.9]} 6... Bxf3 {[%clk 0:02:58.3]} 7.
Bxc6+ {[%clk 0:03:07.1]} 7... bxc6 {[%clk 0:02:58.9]} 8. Qxf3 {[%clk 0:03:09]}
8... e6 {[%clk 0:02:59.9]} 9. d3 {[%clk 0:03:09.8]} 9... Bd6 {[%clk 0:02:59.3]}
10. Nd2 {[%clk 0:03:10.8]} 10... O-O {[%clk 0:02:59.8]} 11. e4 {[%clk
0:03:07.2]} 11... e5 {[%clk 0:02:57.1]} 12. O-O {[%clk 0:03:07]} 12... a5 {[%clk
0:02:56.3]} 13. a4 {[%clk 0:03:06.9]} 13... Rb8 {[%clk 0:02:43.8]} 14. Rae1
{[%clk 0:03:01.5]} 14... Re8 {[%clk 0:02:44.3]} 15. Qe2 {[%clk 0:02:54.6]} 15...
Nd7 {[%clk 0:02:40.9]} 16. Bc3 {[%clk 0:02:54.4]} 16... Nf8 {[%clk 0:02:32.3]}
17. Qf3 {[%clk 0:02:52.8]} 17... Bc7 {[%clk 0:02:32.6]} 18. Qg3 {[%clk
0:02:47.5]} 18... Ng6 {[%clk 0:02:29.6]} 19. Qg4 {[%clk 0:02:43.4]} 19... Qc8
{[%clk 0:02:25]} 20. Qxc8 {[%clk 0:02:43.4]} 20... Rbxc8 {[%clk 0:02:25.6]} 21.
g3 {[%clk 0:02:42.7]} 21... Re6 {[%clk 0:02:20.9]} 22. Nf3 {[%clk 0:02:31.5]}
22... Rf8 {[%clk 0:02:16.7]} 23. Nd2 {[%clk 0:02:17.6]} 23... f5 {[%clk
0:02:16.1]} 24. f3 {[%clk 0:02:19]} 24... h5 {[%clk 0:02:05.8]} 25. Kg2 {[%clk
0:02:15.5]} 25... Ref6 {[%clk 0:01:55.9]} 26. Bb2 {[%clk 0:02:10]} 26... h4
{[%clk 0:01:48.6]} 27. g4 {[%clk 0:02:10.8]} 27... Nf4+ {[%clk 0:01:48.8]} 28.
Kh2 {[%clk 0:02:12.3]} 28... fxe4 {[%clk 0:01:36.6]} 29. fxe4 {[%clk 0:02:12.3]}
29... Nxd3 {[%clk 0:01:07.5]} 30. Rxf6 {[%clk 0:01:52.7]} 30... Rxf6 {[%clk
0:01:07.3]} 31. cxd3 {[%clk 0:01:51]} 31... Rf2+ {[%clk 0:01:07.6]} 32. Kg1
{[%clk 0:01:52.6]} 32... Rxd2 {[%clk 0:01:08]} 33. Ba1 {[%clk 0:01:51]} 33... d4
{[%clk 0:01:04.5]} 0-1

[Event "*** Titled Tuesday Blitz"]
[Site "Chess.com"]
[Date "2019.07.02"]
[Round "5"]
[White "Chesstrainer1"]
[Black "irregularity"]
[Result "1-0"]
[WhiteElo "2417"]
[BlackElo "2527"]
[TimeControl "180+2"]
[EndTime "14:04:48 PDT"]
[Termination "Chesstrainer1 won by resignation"]

1. d4 {[%clk 0:03:01.9]} 1... Nf6 {[%clk 0:02:55.8]} 2. c4 {[%clk 0:03:02]} 2...
c5 {[%clk 0:02:57.7]} 3. d5 {[%clk 0:03:02.5]} 3... e6 {[%clk 0:02:59.4]} 4. Nc3
{[%clk 0:03:02.7]} 4... exd5 {[%clk 0:03:01.3]} 5. cxd5 {[%clk 0:03:04.4]} 5...
d6 {[%clk 0:03:03.2]} 6. e4 {[%clk 0:03:00.9]} 6... g6 {[%clk 0:03:04.6]} 7. f4
{[%clk 0:03:01.7]} 7... Bg7 {[%clk 0:03:05.4]} 8. Bb5+ {[%clk 0:03:02.6]} 8...
Nfd7 {[%clk 0:03:01.4]} 9. Nf3 {[%clk 0:03:01.4]} 9... O-O {[%clk 0:03:02.7]}
10. O-O {[%clk 0:02:51]} 10... a6 {[%clk 0:03:03.5]} 11. Bd3 {[%clk 0:02:52]}
11... b5 {[%clk 0:03:04.7]} 12. Qe1 {[%clk 0:02:52]} 12... c4 {[%clk 0:03:06.1]}
13. Bc2 {[%clk 0:02:52.1]} 13... Nc5 {[%clk 0:03:08]} 14. Qg3 {[%clk 0:02:18.4]}
14... Re8 {[%clk 0:02:56.4]} 15. f5 {[%clk 0:01:58.6]} 15... b4 {[%clk
0:02:56.2]} 16. Na4 {[%clk 0:01:58.8]} 16... Nxe4 {[%clk 0:02:56.4]} 17. Bxe4
{[%clk 0:01:59.7]} 17... Rxe4 {[%clk 0:02:58.3]} 18. fxg6 {[%clk 0:02:00.7]}
18... hxg6 {[%clk 0:03:00.1]} 19. Ng5 {[%clk 0:01:52.8]} 19... Re7 {[%clk
0:03:01.2]} 20. Qh4 {[%clk 0:01:52.6]} 20... Bf5 {[%clk 0:02:49.4]} 21. g4
{[%clk 0:01:47.5]} 21... Bd7 {[%clk 0:01:49.4]} 22. Qh7+ {[%clk 0:01:38.1]}
22... Kf8 {[%clk 0:01:50.3]} 23. Nxf7 {[%clk 0:01:18.6]} 23... Rxf7 {[%clk
0:01:48.1]} 24. Bh6 {[%clk 0:01:19.4]} 24... Qe7 {[%clk 0:00:49.6]} 25. Qxg7+
{[%clk 0:01:15.6]} 25... Ke8 {[%clk 0:00:50.7]} 26. Qg8+ {[%clk 0:01:15.8]} 1-0

[Event "*** Titled Tuesday Blitz"]
[Site "Chess.com"]
[Date "2019.07.02"]
[Round "5"]
[White "OglazaOskar2005"]
[Black "pedromartinez91"]
[Result "1-0"]
[WhiteElo "2270"]
[BlackElo "2422"]
[TimeControl "180+2"]
[EndTime "14:05:09 PDT"]
[Termination "OglazaOskar2005 won by resignation"]

1. e4 {[%clk 0:03:01.9]} 1... e6 {[%clk 0:03:01.1]} 2. d4 {[%clk 0:02:58.1]}
2... d5 {[%clk 0:03:03]} 3. Nc3 {[%clk 0:02:55.1]} 3... Nf6 {[%clk 0:03:03.8]}
4. e5 {[%clk 0:02:49.7]} 4... Ne4 {[%clk 0:03:04.9]} 5. Nce2 {[%clk 0:02:24.2]}
5... f6 {[%clk 0:03:04.1]} 6. f3 {[%clk 0:02:18.5]} 6... Ng5 {[%clk 0:03:05]} 7.
Bxg5 {[%clk 0:02:18.8]} 7... fxg5 {[%clk 0:03:06.9]} 8. Qd2 {[%clk 0:02:08.6]}
8... c5 {[%clk 0:03:07.3]} 9. O-O-O {[%clk 0:02:08.8]} 9... Nc6 {[%clk
0:03:08.5]} 10. h4 {[%clk 0:02:05.9]} 10... gxh4 {[%clk 0:03:08.2]} 11. g3
{[%clk 0:02:00.9]} 11... hxg3 {[%clk 0:03:04]} 12. f4 {[%clk 0:02:01.6]} 12...
Be7 {[%clk 0:02:56.9]} 13. Nf3 {[%clk 0:01:58.3]} 13... Qa5 {[%clk 0:02:57.6]}
14. c3 {[%clk 0:01:52.2]} 14... Qxa2 {[%clk 0:02:53.2]} 15. Nxg3 {[%clk
0:01:50.5]} 15... Bd7 {[%clk 0:02:54]} 16. Bh3 {[%clk 0:01:45.5]} 16... c4
{[%clk 0:02:54.3]} 17. f5 {[%clk 0:01:41.2]} 17... Na5 {[%clk 0:02:48.1]} 18.
Qf4 {[%clk 0:01:34.1]} 18... Qa1+ {[%clk 0:02:46.5]} 19. Kd2 {[%clk 0:01:27.3]}
19... Qxb2+ {[%clk 0:02:47.3]} 20. Ke3 {[%clk 0:01:28.7]} 20... Qxc3+ {[%clk
0:02:48.4]} 21. Kf2 {[%clk 0:01:30.3]} 21... O-O-O {[%clk 0:02:45.6]} 22. fxe6
{[%clk 0:01:28.8]} 22... Ba4 {[%clk 0:02:41.7]} 23. Nf5 {[%clk 0:01:28.3]} 23...
Nc6 {[%clk 0:02:36.1]} 24. Rb1 {[%clk 0:01:20.1]} 24... Rhf8 {[%clk 0:02:32.3]}
25. Rhc1 {[%clk 0:01:06.3]} 25... Qa3 {[%clk 0:02:30.7]} 26. Nd6+ {[%clk
0:00:45.2]} 26... Kb8 {[%clk 0:02:27.1]} 27. Rxb7+ {[%clk 0:00:40.6]} 27... Ka8
{[%clk 0:02:28.4]} 28. Bf5 {[%clk 0:00:30.4]} 28... Bxd6 {[%clk 0:02:16.4]} 29.
exd6 {[%clk 0:00:29.9]} 29... Kxb7 {[%clk 0:02:17.9]} 30. e7 {[%clk 0:00:30.7]}
30... Qxd6 {[%clk 0:02:13.2]} 31. Qxd6 {[%clk 0:00:26.2]} 31... Rxd6 {[%clk
0:02:05.7]} 32. exf8=Q {[%clk 0:00:26]} 32... Rf6 {[%clk 0:02:06.3]} 33. Rb1+
{[%clk 0:00:25.8]} 33... Bb3 {[%clk 0:02:06.9]} 34. Qxg7+ {[%clk 0:00:26.5]} 1-0

[Event "*** Titled Tuesday Blitz"]
[Site "Chess.com"]
[Date "2019.07.02"]
[Round "5"]
[White "albano87"]
[Black "nitpicker"]
[Result "0-1"]
[WhiteElo "2182"]
[BlackElo "2229"]
[TimeControl "180+2"]
[EndTime "14:05:10 PDT"]
[Termination "nitpicker won on time"]

1. e4 {[%clk 0:00:12.2]} 1... d5 {[%clk 0:02:59.1]} 2. exd5 {[%clk 0:00:12.2]}
2... Qxd5 {[%clk 0:02:59.9]} 3. d4 {[%clk 0:00:13.7]} 3... Nf6 {[%clk
0:02:57.6]} 4. Nc3 {[%clk 0:00:14.8]} 4... Qd8 {[%clk 0:02:57.5]} 5. Nf3 {[%clk
0:00:15.9]} 5... c6 {[%clk 0:02:51]} 6. Bc4 {[%clk 0:00:17.1]} 6... Bf5 {[%clk
0:02:45.6]} 7. O-O {[%clk 0:00:16.9]} 7... h6 {[%clk 0:02:45.5]} 8. Re1 {[%clk
0:00:18.2]} 8... e6 {[%clk 0:02:46.8]} 9. Bf4 {[%clk 0:00:18.7]} 9... Bd6 {[%clk
0:02:41.9]} 10. Ne5 {[%clk 0:00:17.8]} 10... Qc7 {[%clk 0:02:40.6]} 11. Qf3
{[%clk 0:00:12.2]} 11... O-O {[%clk 0:02:28.1]} 12. Qg3 {[%clk 0:00:12.1]} 12...
Nh5 {[%clk 0:02:20.8]} 13. Qh4 {[%clk 0:00:11.9]} 13... Nxf4 {[%clk 0:02:21.2]}
14. Qxf4 {[%clk 0:00:12.5]} 14... Nd7 {[%clk 0:02:14.4]} 15. Ne4 {[%clk
0:00:11.4]} 15... Bxe5 {[%clk 0:02:05.5]} 16. dxe5 {[%clk 0:00:09.8]} 16... Qxe5
{[%clk 0:02:06.4]} 17. Qh4 {[%clk 0:00:07.3]} 17... Nb6 {[%clk 0:01:50.1]} 18.
Bd3 {[%clk 0:00:05.8]} 18... Qxb2 {[%clk 0:01:46.9]} 19. Rad1 {[%clk 0:00:04.7]}
19... Rad8 {[%clk 0:01:41.7]} 20. Re3 {[%clk 0:00:03.8]} 20... Qd4 {[%clk
0:01:26]} 21. Rg3 {[%clk 0:00:02.9]} 21... Bxe4 {[%clk 0:01:23.8]} 0-1

[Event "*** Titled Tuesday Blitz"]
[Site "Chess.com"]
[Date "2019.07.02"]
[Round "5"]
[White "nubair1198"]
[Black "RichardLeyvaP"]
[Result "1-0"]
[WhiteElo "2660"]
[BlackElo "2416"]
[TimeControl "180+2"]
[EndTime "14:05:13 PDT"]
[Termination "nubair1198 won on time"]

1. Nf3 {[%clk 0:03:01.9]} 1... Nf6 {[%clk 0:03:00.3]} 2. c4 {[%clk 0:03:02.8]}
2... g6 {[%clk 0:02:55]} 3. Nc3 {[%clk 0:03:03.5]} 3... Bg7 {[%clk 0:02:55.7]}
4. d4 {[%clk 0:03:05.1]} 4... d6 {[%clk 0:02:56.6]} 5. e4 {[%clk 0:03:06.6]}
5... O-O {[%clk 0:02:57.4]} 6. Be2 {[%clk 0:03:08.2]} 6... e5 {[%clk 0:02:40.1]}
7. O-O {[%clk 0:03:09.2]} 7... Nc6 {[%clk 0:02:40.1]} 8. d5 {[%clk 0:03:10.4]}
8... Ne7 {[%clk 0:02:38]} 9. Qc2 {[%clk 0:03:11.1]} 9... c5 {[%clk 0:02:22.5]}
10. dxc6 {[%clk 0:03:09.6]} 10... Nxc6 {[%clk 0:02:17]} 11. Rd1 {[%clk
0:03:10.8]} 11... Bg4 {[%clk 0:02:06.4]} 12. Be3 {[%clk 0:03:12.1]} 12... Bxf3
{[%clk 0:02:06.2]} 13. Bxf3 {[%clk 0:03:12.9]} 13... Nd4 {[%clk 0:02:01.7]} 14.
Bxd4 {[%clk 0:03:13.1]} 14... exd4 {[%clk 0:02:02.1]} 15. Rxd4 {[%clk 0:03:15]}
15... Rc8 {[%clk 0:01:51.8]} 16. Rad1 {[%clk 0:03:14.8]} 16... Qe7 {[%clk
0:01:52.8]} 17. Qb3 {[%clk 0:03:10.6]} 17... Rc6 {[%clk 0:01:43]} 18. Qa3 {[%clk
0:03:03.6]} 18... Ra6 {[%clk 0:01:38.5]} 19. Qb3 {[%clk 0:03:02.3]} 19... Rb6
{[%clk 0:01:38.4]} 20. Qc2 {[%clk 0:03:02.5]} 20... Qe6 {[%clk 0:01:34.7]} 21.
b3 {[%clk 0:02:57.7]} 21... Nh5 {[%clk 0:01:20.4]} 22. R4d2 {[%clk 0:02:55.3]}
22... Nf4 {[%clk 0:01:10.8]} 23. Nd5 {[%clk 0:02:56.6]} 23... Nxd5 {[%clk
0:01:07]} 24. exd5 {[%clk 0:02:53]} 24... Qc8 {[%clk 0:01:02.7]} 25. h4 {[%clk
0:02:48.2]} 25... Re8 {[%clk 0:00:55]} 26. h5 {[%clk 0:02:48.7]} 26... Ra6
{[%clk 0:00:43.6]} 27. c5 {[%clk 0:02:45.5]} 27... Bh6 {[%clk 0:00:29.4]} 28.
Re2 {[%clk 0:02:36.7]} 28... dxc5 {[%clk 0:00:29.7]} 29. Rxe8+ {[%clk
0:02:34.4]} 29... Qxe8 {[%clk 0:00:17.2]} 30. d6 {[%clk 0:02:36.3]} 30... Bf8
{[%clk 0:00:19]} 31. d7 {[%clk 0:02:33.5]} 31... Qd8 {[%clk 0:00:17.8]} 32. Qe4
{[%clk 0:02:33.5]} 32... Rb6 {[%clk 0:00:14]} 33. Qe8 {[%clk 0:02:33.5]} 1-0

[Event "*** Titled Tuesday Blitz"]
[Site "Chess.com"]
[Date "2019.07.02"]
[Round "5"]
[White "PabloZarnicki"]
[Black "vova-79"]
[Result "1-0"]
[WhiteElo "2591"]
[BlackElo "2394"]
[TimeControl "180+2"]
[EndTime "14:05:14 PDT"]
[Termination "PabloZarnicki won by resignation"]

1. e4 {[%clk 0:03:01.9]} 1... e6 {[%clk 0:03:00.2]} 2. d4 {[%clk 0:02:49.4]}
2... d5 {[%clk 0:02:57.7]} 3. Nd2 {[%clk 0:02:49.3]} 3... dxe4 {[%clk
0:02:55.1]} 4. Nxe4 {[%clk 0:02:41.8]} 4... Nd7 {[%clk 0:02:56.9]} 5. g3 {[%clk
0:02:40.5]} 5... Ngf6 {[%clk 0:02:55.4]} 6. Nxf6+ {[%clk 0:02:41.7]} 6... Nxf6
{[%clk 0:02:54.5]} 7. Bg2 {[%clk 0:02:43.6]} 7... e5 {[%clk 0:02:45]} 8. Ne2
{[%clk 0:02:42.5]} 8... Bd6 {[%clk 0:02:38.8]} 9. dxe5 {[%clk 0:02:41.3]} 9...
Bxe5 {[%clk 0:02:39.1]} 10. Qxd8+ {[%clk 0:02:43.2]} 10... Kxd8 {[%clk
0:02:39.7]} 11. O-O {[%clk 0:02:42.4]} 11... c6 {[%clk 0:02:40.3]} 12. Nf4
{[%clk 0:02:36.6]} 12... Bf5 {[%clk 0:02:33]} 13. c3 {[%clk 0:02:25.6]} 13...
Kc7 {[%clk 0:02:30.3]} 14. Re1 {[%clk 0:02:26.3]} 14... Rhe8 {[%clk 0:02:29]}
15. h3 {[%clk 0:02:17.5]} 15... Bd6 {[%clk 0:02:20]} 16. Be3 {[%clk 0:02:16.7]}
16... b6 {[%clk 0:02:18]} 17. Rad1 {[%clk 0:02:13.9]} 17... Rad8 {[%clk
0:02:02.4]} 18. Bd4 {[%clk 0:02:13.6]} 18... Rxe1+ {[%clk 0:01:57.4]} 19. Rxe1
{[%clk 0:02:10.4]} 19... Bxf4 {[%clk 0:01:56.5]} 20. gxf4 {[%clk 0:02:07.8]}
20... Re8 {[%clk 0:01:56.2]} 21. Be5+ {[%clk 0:02:00.6]} 21... Kb7 {[%clk
0:01:56.4]} 22. Rd1 {[%clk 0:02:02.5]} 22... Re7 {[%clk 0:01:50.1]} 23. Bxf6
{[%clk 0:01:58.9]} 23... gxf6 {[%clk 0:01:48.6]} 24. Rd6 {[%clk 0:02:00.8]}
24... Re6 {[%clk 0:01:44.7]} 25. Rd7+ {[%clk 0:01:56]} 25... Kb8 {[%clk
0:01:41.9]} 26. Rxf7 {[%clk 0:01:56.8]} 26... Re1+ {[%clk 0:01:41]} 27. Kh2
{[%clk 0:01:57.1]} 27... Re2 {[%clk 0:01:41.8]} 28. Rxf6 {[%clk 0:01:54.8]}
28... Bb1 {[%clk 0:01:41]} 29. Kg3 {[%clk 0:01:48.2]} 29... Rxb2 {[%clk
0:01:40.6]} 30. f5 {[%clk 0:01:43.8]} 30... Rc2 {[%clk 0:01:34.1]} 31. Rf8+
{[%clk 0:01:42.7]} 31... Kc7 {[%clk 0:01:33.6]} 32. f6 {[%clk 0:01:42.5]} 32...
Rxc3+ {[%clk 0:01:33.5]} 33. Kf4 {[%clk 0:01:37.9]} 33... Rc2 {[%clk 0:01:27.3]}
34. f7 {[%clk 0:01:28.8]} 34... Rxf2+ {[%clk 0:01:27]} 35. Bf3 {[%clk
0:01:29.9]} 35... Bxa2 {[%clk 0:01:26.9]} 36. Rc8+ {[%clk 0:01:16.4]} 1-0

[Event "*** Titled Tuesday Blitz"]
[Site "Chess.com"]
[Date "2019.07.02"]
[Round "5"]
[White "sergeikim"]
[Black "BakaPG"]
[Result "0-1"]
[WhiteElo "2483"]
[BlackElo "2727"]
[TimeControl "180+2"]
[EndTime "14:05:32 PDT"]
[Termination "BakaPG won by resignation"]

1. d4 {[%clk 0:03:01.9]} 1... d5 {[%clk 0:03:00.3]} 2. c4 {[%clk 0:03:02.5]}
2... c6 {[%clk 0:03:00.9]} 3. Nf3 {[%clk 0:03:02.8]} 3... Nf6 {[%clk 0:03:01.5]}
4. Qc2 {[%clk 0:03:03.7]} 4... dxc4 {[%clk 0:03:00.3]} 5. Qxc4 {[%clk 0:03:04]}
5... b5 {[%clk 0:03:01.4]} 6. Qc2 {[%clk 0:03:04.2]} 6... e6 {[%clk 0:02:52.1]}
7. e4 {[%clk 0:03:04.3]} 7... Bb7 {[%clk 0:02:52.5]} 8. Bd3 {[%clk 0:02:57.2]}
8... Nbd7 {[%clk 0:02:50.1]} 9. O-O {[%clk 0:02:56.9]} 9... Rc8 {[%clk
0:02:49.6]} 10. Nc3 {[%clk 0:02:46.5]} 10... b4 {[%clk 0:02:47.1]} 11. Na4
{[%clk 0:02:36.1]} 11... c5 {[%clk 0:02:48.1]} 12. dxc5 {[%clk 0:02:34.6]} 12...
Nxc5 {[%clk 0:02:47.5]} 13. Bb5+ {[%clk 0:02:25.8]} 13... Ncd7 {[%clk
0:02:48.1]} 14. Qe2 {[%clk 0:02:23.5]} 14... Bxe4 {[%clk 0:02:38]} 15. Ne5
{[%clk 0:02:21.3]} 15... Rc2 {[%clk 0:02:20.9]} 16. Qd1 {[%clk 0:01:42]} 16...
Qc7 {[%clk 0:02:06.3]} 17. Nxd7 {[%clk 0:01:35.5]} 17... Nxd7 {[%clk 0:02:03.8]}
18. Re1 {[%clk 0:01:21.1]} 18... Bg6 {[%clk 0:01:43.6]} 19. Bf4 {[%clk
0:00:47.8]} 19... Qb7 {[%clk 0:01:44.2]} 20. Bd3 {[%clk 0:00:36.1]} 20... Bxd3
{[%clk 0:01:40]} 21. Qxd3 {[%clk 0:00:36.1]} 21... Rc6 {[%clk 0:01:35.1]} 22.
Rad1 {[%clk 0:00:34.1]} 22... Be7 {[%clk 0:01:32.3]} 23. Bg3 {[%clk 0:00:25.5]}
23... Nf6 {[%clk 0:01:30]} 24. Be5 {[%clk 0:00:20.7]} 24... O-O {[%clk
0:01:28.3]} 25. Qg3 {[%clk 0:00:21.5]} 25... Rc4 {[%clk 0:01:18.7]} 26. b3
{[%clk 0:00:21.6]} 26... Rg4 {[%clk 0:01:19.1]} 27. Rd7 {[%clk 0:00:14.1]} 27...
Qxd7 {[%clk 0:01:16.6]} 0-1